[Event "Live Chess"]
[Site "Chess.com"]
[Date "2024.06.01"]
[Round "-"]
[White "jimwad"]
[Black "resipsa6"]
[Result "0-1"]
[WhiteElo "1223"]
[BlackElo "2047"]
[TimeControl "300"]
[EndTime "9:29:31 PDT"]
[Termination "resipsa6 won by resignation"]

1. d4 {[%clk 0:04:58.1]} 1... d6 {[%clk 0:04:57.8]} 2. c4 {[%clk 0:04:57.2]}
2... e6 {[%clk 0:04:57.2]} 3. Nc3 {[%clk 0:04:56.3]} 3... Be7 {[%clk 0:04:56.8]}
4. Nf3 {[%clk 0:04:54.4]} 4... Bd7 {[%clk 0:04:56.3]} 5. e4 {[%clk 0:04:49.9]}
5... c6 {[%clk 0:04:54.8]} 6. Bd3 {[%clk 0:04:48.4]} 6... d5 {[%clk 0:04:54.2]}
7. cxd5 {[%clk 0:04:46.4]} 7... cxd5 {[%clk 0:04:54.1]} 8. e5 {[%clk 0:04:45.4]}
8... Nc6 {[%clk 0:04:53.5]} 9. Be3 {[%clk 0:04:44]} 9... Bb4 {[%clk 0:04:52.4]}
10. O-O {[%clk 0:04:42]} 10... Bxc3 {[%clk 0:04:51.6]} 11. bxc3 {[%clk 0:04:41]}
11... Nge7 {[%clk 0:04:51.5]} 12. c4 {[%clk 0:04:38.6]} 12... dxc4 {[%clk
0:04:50.5]} 13. Bxc4 {[%clk 0:04:37.7]} 13... Nf5 {[%clk 0:04:49.9]} 14. Qd2
{[%clk 0:04:31.5]} 14... Nxe3 {[%clk 0:04:48.7]} 15. Qxe3 {[%clk 0:04:30.5]}
15... O-O {[%clk 0:04:48.1]} 16. Rab1 {[%clk 0:04:24.4]} 16... Na5 {[%clk
0:04:47]} 17. Bb3 {[%clk 0:04:22.5]} 17... Nxb3 {[%clk 0:04:45.7]} 18. Rxb3
{[%clk 0:04:21.3]} 18... Bc6 {[%clk 0:04:45.1]} 19. Rd1 {[%clk 0:04:17.5]} 19...
Bxf3 {[%clk 0:04:43.9]} 20. Qxf3 {[%clk 0:04:16.3]} 20... Rc8 {[%clk 0:04:42.6]}
21. Rxb7 {[%clk 0:04:11.2]} 21... Rc4 {[%clk 0:04:35.3]} 22. Qd3 {[%clk
0:04:02.1]} 22... Ra4 {[%clk 0:04:32.6]} 23. Rb2 {[%clk 0:03:55.3]} 23... Qd5
{[%clk 0:04:30.6]} 24. Rdd2 {[%clk 0:03:28.9]} 24... Rc8 {[%clk 0:04:28.4]} 25.
h3 {[%clk 0:03:27.5]} 25... Rc1+ {[%clk 0:04:23.3]} 26. Kh2 {[%clk 0:03:25.1]}
26... Rc8 {[%clk 0:04:20.6]} 27. Rbc2 {[%clk 0:02:55.4]} 27... Rd8 {[%clk
0:04:13.2]} 28. Qf3 {[%clk 0:02:25.9]} 28... Qxf3 {[%clk 0:04:08.2]} 29. gxf3
{[%clk 0:02:24.1]} 29... g6 {[%clk 0:04:07.2]} 30. Kg3 {[%clk 0:02:02.8]} 30...
Rdxd4 {[%clk 0:04:02.2]} 31. Rxd4 {[%clk 0:02:01.6]} 31... Rxd4 {[%clk
0:04:02.1]} 32. Rc7 {[%clk 0:01:58.4]} 32... Ra4 {[%clk 0:04:00.9]} 33. Rc2
{[%clk 0:01:56.2]} 33... h5 {[%clk 0:03:58.1]} 34. f4 {[%clk 0:01:55.1]} 34...
Kg7 {[%clk 0:03:56.5]} 35. f3 {[%clk 0:01:53.5]} 35... Ra3 {[%clk 0:03:55.2]}
36. h4 {[%clk 0:01:51.9]} 36... f6 {[%clk 0:03:52.7]} 37. exf6+ {[%clk
0:01:49.7]} 37... Kxf6 {[%clk 0:03:52.6]} 38. Re2 {[%clk 0:01:45.6]} 38... Ra4
{[%clk 0:03:49.9]} 39. Rb2 {[%clk 0:01:32.8]} 39... a5 {[%clk 0:03:43.9]} 40.
Re2 {[%clk 0:01:24.1]} 40... Ra3 {[%clk 0:03:41.2]} 41. Rb2 {[%clk 0:01:20.5]}
41... Rd3 {[%clk 0:03:33.5]} 42. Re2 {[%clk 0:01:18.9]} 42... Rd1 {[%clk
0:03:30.4]} 43. Kg2 {[%clk 0:01:16.5]} 43... Kf5 {[%clk 0:03:23.8]} 44. Re5+
{[%clk 0:01:13.8]} 44... Kxf4 {[%clk 0:03:22.7]} 45. Rxa5 {[%clk 0:01:12.8]}
45... Rd2+ {[%clk 0:03:21.4]} 46. Kh3 {[%clk 0:01:07]} 46... Kxf3 {[%clk
0:03:17.8]} 47. Ra3+ {[%clk 0:01:06.2]} 47... Kf4 {[%clk 0:03:15.5]} 48. Ra4+
{[%clk 0:01:03.3]} 48... Kf5 {[%clk 0:03:14.7]} 49. Ra5+ {[%clk 0:01:00.5]}
49... e5 {[%clk 0:03:13.8]} 50. Ra8 {[%clk 0:00:56.2]} 50... e4 {[%clk
0:03:11.2]} 51. Rf8+ {[%clk 0:00:55]} 51... Ke5 {[%clk 0:03:08.8]} 52. Kg3
{[%clk 0:00:54.1]} 52... Rxa2 {[%clk 0:03:05.7]} 53. Re8+ {[%clk 0:00:52.2]}
53... Kf5 {[%clk 0:03:04.6]} 54. Rf8+ {[%clk 0:00:51]} 54... Ke5 {[%clk
0:02:59.7]} 55. Re8+ {[%clk 0:00:49.8]} 55... Kd5 {[%clk 0:02:59.1]} 56. Kf4
{[%clk 0:00:48.4]} 56... Rf2+ {[%clk 0:02:56.8]} 57. Kg5 {[%clk 0:00:47]} 57...
Rg2+ {[%clk 0:02:55.3]} 58. Kf4 {[%clk 0:00:45.8]} 58... Rg4+ {[%clk 0:02:50.8]}
59. Ke3 {[%clk 0:00:41.5]} 59... Rxh4 {[%clk 0:02:49.7]} 60. Rd8+ {[%clk
0:00:40.5]} 60... Ke5 {[%clk 0:02:48.8]} 61. Re8+ {[%clk 0:00:39.7]} 61... Kf5
{[%clk 0:02:48.1]} 62. Rf8+ {[%clk 0:00:38.8]} 62... Kg5 {[%clk 0:02:47.2]} 63.
Re8 {[%clk 0:00:37.7]} 63... Rg4 {[%clk 0:02:44.6]} 64. Re5+ {[%clk 0:00:36.2]}
64... Kh4 {[%clk 0:02:43.4]} 65. Rxe4 {[%clk 0:00:28.5]} 65... Rxe4+ {[%clk
0:02:42.6]} 66. Kxe4 {[%clk 0:00:28]} 66... Kg3 {[%clk 0:02:42.5]} 67. Ke3
{[%clk 0:00:27.3]} 67... h4 {[%clk 0:02:41.8]} 68. Ke2 {[%clk 0:00:26.5]} 68...
Kg2 {[%clk 0:02:41.3]} 0-1

[Event "Live Chess"]
[Site "Chess.com"]
[Date "2024.06.01"]
[Round "-"]
[White "Crowded_House"]
[Black "Grieve72"]
[Result "0-1"]
[WhiteElo "1740"]
[BlackElo "2651"]
[TimeControl "300"]
[EndTime "9:29:31 PDT"]
[Termination "Grieve72 won by resignation"]

1. d4 {[%clk 0:04:58.3]} 1... d5 {[%clk 0:04:59.1]} 2. Bg5 {[%clk 0:04:57.4]}
2... h6 {[%clk 0:04:57.7]} 3. Bh4 {[%clk 0:04:54.4]} 3... c5 {[%clk 0:04:57.4]}
4. c3 {[%clk 0:04:53]} 4... Qb6 {[%clk 0:04:55.6]} 5. Qb3 {[%clk 0:04:50.5]}
5... c4 {[%clk 0:04:53.5]} 6. Qxb6 {[%clk 0:04:49.4]} 6... axb6 {[%clk
0:04:53.4]} 7. a3 {[%clk 0:04:46.9]} 7... b5 {[%clk 0:04:52.6]} 8. Nd2 {[%clk
0:04:41.7]} 8... Nc6 {[%clk 0:04:51.1]} 9. e3 {[%clk 0:04:38.1]} 9... b4 {[%clk
0:04:49.6]} 10. Ngf3 {[%clk 0:04:28.6]} 10... Bf5 {[%clk 0:04:44.9]} 11. Be2
{[%clk 0:04:20.8]} 11... bxc3 {[%clk 0:04:43.7]} 12. bxc3 {[%clk 0:04:19.5]}
12... e6 {[%clk 0:04:43.6]} 13. O-O {[%clk 0:04:16.9]} 13... Rxa3 {[%clk
0:04:37.7]} 14. Rxa3 {[%clk 0:04:15]} 14... Bxa3 {[%clk 0:04:37.6]} 15. Ra1
{[%clk 0:03:47.5]} 15... Bb2 {[%clk 0:04:36.6]} 16. Ra8+ {[%clk 0:03:44.8]}
16... Kd7 {[%clk 0:04:36.1]} 17. Rf8 {[%clk 0:03:42.2]} 17... Bg6 {[%clk
0:04:31.3]} 18. e4 {[%clk 0:03:31.2]} 18... Bxc3 {[%clk 0:04:29.6]} 19. exd5
{[%clk 0:03:24.1]} 19... exd5 {[%clk 0:04:29.5]} 20. Nf1 {[%clk 0:03:14.1]}
20... Bb4 {[%clk 0:04:17.2]} 21. Ne3 {[%clk 0:03:13.2]} 21... Bxf8 {[%clk
0:04:15.6]} 22. Nxd5 {[%clk 0:03:11.8]} 22... b5 {[%clk 0:04:14]} 23. Bg3 {[%clk
0:03:01.6]} 23... Be4 {[%clk 0:04:12.5]} 24. Nb6+ {[%clk 0:02:58.8]} 24... Kd8
{[%clk 0:04:10.5]} 25. Nd2 {[%clk 0:02:51.2]} 25... Nf6 {[%clk 0:04:08.1]} 26.
Nxe4 {[%clk 0:02:48.1]} 26... Nxe4 {[%clk 0:04:08]} 0-1

[Event "Live Chess"]
[Site "Chess.com"]
[Date "2024.06.01"]
[Round "-"]
[White "raimundklein"]
[Black "A3ndrey9"]
[Result "0-1"]
[WhiteElo "1563"]
[BlackElo "1277"]
[TimeControl "300"]
[EndTime "9:29:33 PDT"]
[Termination "A3ndrey9 won by resignation"]

1. e4 {[%clk 0:04:58.3]} 1... c6 {[%clk 0:04:59.7]} 2. Nf3 {[%clk 0:04:53.4]}
2... d5 {[%clk 0:04:59.6]} 3. exd5 {[%clk 0:04:52.6]} 3... cxd5 {[%clk
0:04:58.6]} 4. Ne5 {[%clk 0:04:52.3]} 4... Nf6 {[%clk 0:04:51.5]} 5. Bb5+ {[%clk
0:04:49.7]} 5... Bd7 {[%clk 0:04:44.3]} 6. Nxd7 {[%clk 0:04:47.8]} 6... Nbxd7
{[%clk 0:04:43.1]} 7. d4 {[%clk 0:04:43.4]} 7... a6 {[%clk 0:04:41]} 8. Bd3
{[%clk 0:04:41.3]} 8... e6 {[%clk 0:04:39.4]} 9. Bg5 {[%clk 0:04:37.6]} 9... h6
{[%clk 0:04:37.1]} 10. Bh4 {[%clk 0:04:33.8]} 10... Be7 {[%clk 0:04:34.3]} 11.
O-O {[%clk 0:04:30.6]} 11... Qb6 {[%clk 0:04:30.6]} 12. Nc3 {[%clk 0:03:59.4]}
12... Qxd4 {[%clk 0:04:22.9]} 13. Qe2 {[%clk 0:03:48.5]} 13... Nc5 {[%clk
0:04:05.1]} 14. Rfd1 {[%clk 0:03:43.4]} 14... Qxh4 {[%clk 0:03:59.4]} 15. g3
{[%clk 0:03:34.4]} 15... Qh3 {[%clk 0:03:47.8]} 16. Qf3 {[%clk 0:03:18.9]} 16...
Nxd3 {[%clk 0:03:45.3]} 17. Rxd3 {[%clk 0:03:15.9]} 17... Ng4 {[%clk 0:03:44.1]}
18. Qg2 {[%clk 0:03:14.3]} 18... Qxg2+ {[%clk 0:03:24.4]} 19. Kxg2 {[%clk
0:03:14.2]} 19... O-O {[%clk 0:03:22.9]} 20. Ne2 {[%clk 0:03:11]} 20... Bc5
{[%clk 0:03:18]} 21. f3 {[%clk 0:03:04.5]} 21... Ne3+ {[%clk 0:03:08]} 22. Kh1
{[%clk 0:03:02.5]} 22... Rac8 {[%clk 0:02:54.6]} 23. c3 {[%clk 0:02:59.2]} 23...
Nf5 {[%clk 0:02:39.6]} 24. Kg2 {[%clk 0:02:55.3]} 24... Ne3+ {[%clk 0:02:36.5]}
25. Kh1 {[%clk 0:02:53.5]} 25... Nf5 {[%clk 0:02:31]} 26. Kg2 {[%clk 0:02:52]}
26... Rfd8 {[%clk 0:02:27]} 27. Rad1 {[%clk 0:02:47.2]} 27... Ne3+ {[%clk
0:02:24.1]} 28. Kh1 {[%clk 0:02:45.5]} 28... Nxd1 {[%clk 0:02:24]} 29. Rxd1
{[%clk 0:02:42.4]} 0-1

[Event "Live Chess"]
[Site "Chess.com"]
[Date "2024.06.01"]
[Round "-"]
[White "Hazban"]
[Black "Tushinskiy"]
[Result "0-1"]
[WhiteElo "2039"]
[BlackElo "2230"]
[TimeControl "300"]
[EndTime "9:29:34 PDT"]
[Termination "Tushinskiy won by resignation"]

1. d4 {[%clk 0:04:58.8]} 1... d5 {[%clk 0:04:56.3]} 2. Nf3 {[%clk 0:04:57.9]}
2... c6 {[%clk 0:04:56.2]} 3. e3 {[%clk 0:04:55.2]} 3... Nf6 {[%clk 0:04:56.1]}
4. Bd3 {[%clk 0:04:53.3]} 4... Bg4 {[%clk 0:04:55.2]} 5. Nbd2 {[%clk 0:04:51]}
5... Bh5 {[%clk 0:04:55.1]} 6. h3 {[%clk 0:04:49.3]} 6... Nbd7 {[%clk
0:04:52.2]} 7. b3 {[%clk 0:04:48.1]} 7... e6 {[%clk 0:04:50.4]} 8. Bb2 {[%clk
0:04:47.1]} 8... Bd6 {[%clk 0:04:44.5]} 9. O-O {[%clk 0:04:45.7]} 9... Qe7
{[%clk 0:04:43.8]} 10. Qc1 {[%clk 0:04:41.6]} 10... Bg6 {[%clk 0:04:40]} 11. Re1
{[%clk 0:04:37.3]} 11... Ne4 {[%clk 0:04:37.3]} 12. c4 {[%clk 0:04:27.7]} 12...
O-O {[%clk 0:04:29.9]} 13. c5 {[%clk 0:04:25.5]} 13... Bc7 {[%clk 0:04:28.7]}
14. Bf1 {[%clk 0:04:20.8]} 14... f5 {[%clk 0:04:26.9]} 15. b4 {[%clk 0:04:18.3]}
15... Bh5 {[%clk 0:04:21.6]} 16. a4 {[%clk 0:04:12.5]} 16... g5 {[%clk
0:04:16.9]} 17. b5 {[%clk 0:04:03.9]} 17... g4 {[%clk 0:04:13.7]} 18. hxg4
{[%clk 0:03:59]} 18... fxg4 {[%clk 0:04:11.5]} 19. Nxe4 {[%clk 0:03:58]} 19...
gxf3 {[%clk 0:04:08.2]} 20. Ng3 {[%clk 0:03:54.1]} 20... fxg2 {[%clk 0:03:58.9]}
21. Bxg2 {[%clk 0:03:46.2]} 21... Bxg3 {[%clk 0:03:42.2]} 22. fxg3 {[%clk
0:03:45]} 22... Qg5 {[%clk 0:03:41.5]} 23. e4 {[%clk 0:03:37]} 23... Qxg3 {[%clk
0:03:39.9]} 24. exd5 {[%clk 0:03:35.7]} 24... Qf2+ {[%clk 0:03:34.3]} 25. Kh1
{[%clk 0:03:33.7]} 25... Rf4 {[%clk 0:03:19.3]} 26. Re3 {[%clk 0:03:22.5]} 26...
Rh4+ {[%clk 0:03:14.2]} 27. Bh3 {[%clk 0:03:20.3]} 27... Bf3+ {[%clk 0:03:09.6]}
28. Rxf3 {[%clk 0:03:19.1]} 28... Qxf3+ {[%clk 0:03:08.5]} 29. Kh2 {[%clk
0:03:18.1]} 29... Rxh3+ {[%clk 0:03:05.8]} 0-1

[Event "Live Chess"]
[Site "Chess.com"]
[Date "2024.06.01"]
[Round "-"]
[White "CheckThis4"]
[Black "Cruiseylee78"]
[Result "1-0"]
[WhiteElo "2692"]
[BlackElo "1661"]
[TimeControl "300"]
[EndTime "9:29:35 PDT"]
[Termination "CheckThis4 won by checkmate"]

1. d4 {[%clk 0:04:58.1]} 1... Nf6 {[%clk 0:04:57.4]} 2. Nc3 {[%clk 0:04:57.2]}
2... d6 {[%clk 0:04:46.7]} 3. e4 {[%clk 0:04:55.8]} 3... Nbd7 {[%clk 0:04:45.5]}
4. Nge2 {[%clk 0:04:39.7]} 4... e6 {[%clk 0:04:44.6]} 5. g3 {[%clk 0:04:33.3]}
5... e5 {[%clk 0:04:32.5]} 6. Bg2 {[%clk 0:04:28.1]} 6... c6 {[%clk 0:04:30.2]}
7. O-O {[%clk 0:04:06]} 7... Be7 {[%clk 0:04:15.9]} 8. h3 {[%clk 0:04:03.4]}
8... Qc7 {[%clk 0:04:10.9]} 9. b3 {[%clk 0:03:59.9]} 9... Nf8 {[%clk 0:04:08.5]}
10. Bb2 {[%clk 0:03:58]} 10... h6 {[%clk 0:04:07.3]} 11. d5 {[%clk 0:03:55.9]}
11... g5 {[%clk 0:04:05.8]} 12. dxc6 {[%clk 0:03:49.8]} 12... bxc6 {[%clk
0:04:04.6]} 13. Qd3 {[%clk 0:03:45.7]} 13... Ng6 {[%clk 0:04:03.1]} 14. Rad1
{[%clk 0:03:42]} 14... a5 {[%clk 0:03:57.1]} 15. Ba3 {[%clk 0:03:39.9]} 15...
Ba6 {[%clk 0:03:49.9]} 16. Qd2 {[%clk 0:03:28.9]} 16... Rd8 {[%clk 0:03:37]} 17.
Rfe1 {[%clk 0:03:25.8]} 17... O-O {[%clk 0:03:22.6]} 18. Na4 {[%clk 0:03:17.4]}
18... d5 {[%clk 0:03:11.4]} 19. Bxe7 {[%clk 0:03:13.9]} 19... Nxe7 {[%clk
0:03:10.7]} 20. Qe3 {[%clk 0:02:45.6]} 20... d4 {[%clk 0:03:09.2]} 21. Qf3
{[%clk 0:02:37.9]} 21... Qd6 {[%clk 0:02:58.8]} 22. c4 {[%clk 0:02:21.2]} 22...
Nd7 {[%clk 0:02:52.3]} 23. g4 {[%clk 0:02:17.4]} 23... Ng6 {[%clk 0:02:46.6]}
24. Ng3 {[%clk 0:02:16.3]} 24... Nf4 {[%clk 0:02:42.7]} 25. Nf5 {[%clk
0:02:15.4]} 25... Qf6 {[%clk 0:02:29.7]} 26. Bf1 {[%clk 0:02:08.5]} 26... c5
{[%clk 0:02:08.7]} 27. Nb2 {[%clk 0:02:05.3]} 27... Kh7 {[%clk 0:02:00.5]} 28.
Nd3 {[%clk 0:02:04]} 28... Nxd3 {[%clk 0:01:56.3]} 29. Bxd3 {[%clk 0:02:02.2]}
29... a4 {[%clk 0:01:52.4]} 30. bxa4 {[%clk 0:01:56.6]} 30... Qc6 {[%clk
0:01:47.2]} 31. Kg2 {[%clk 0:01:48.7]} 31... Qxa4 {[%clk 0:01:43.5]} 32. h4
{[%clk 0:01:43.8]} 32... f6 {[%clk 0:01:34.8]} 33. Rh1 {[%clk 0:01:38.8]} 33...
Rg8 {[%clk 0:01:22.6]} 34. hxg5 {[%clk 0:01:37]} 34... fxg5 {[%clk 0:01:21.7]}
35. Rxh6# {[%clk 0:01:34.1]} 1-0

[Event "Live Chess"]
[Site "Chess.com"]
[Date "2024.06.01"]
[Round "-"]
[White "RuslanChessN"]
[Black "will-balkwill"]
[Result "1-0"]
[WhiteElo "1986"]
[BlackElo "1077"]
[TimeControl "300"]
[EndTime "9:29:38 PDT"]
[Termination "RuslanChessN won on time"]

1. d4 {[%clk 0:04:53.9]} 1... Nf6 {[%clk 0:04:58.6]} 2. c4 {[%clk 0:04:52.4]}
2... e5 {[%clk 0:04:53.1]} 3. d5 {[%clk 0:04:48.4]} 3... Bc5 {[%clk 0:04:47.5]}
4. e3 {[%clk 0:04:39.2]} 4... d6 {[%clk 0:04:44.6]} 5. Nc3 {[%clk 0:04:36.9]}
5... Bf5 {[%clk 0:04:35.8]} 6. a3 {[%clk 0:04:36.3]} 6... a5 {[%clk 0:04:28.1]}
7. Bd3 {[%clk 0:04:34.1]} 7... Bxd3 {[%clk 0:04:15.4]} 8. Qxd3 {[%clk
0:04:24.5]} 8... O-O {[%clk 0:04:15.3]} 9. Nf3 {[%clk 0:04:22.2]} 9... Re8
{[%clk 0:04:06.2]} 10. Ne4 {[%clk 0:04:20.7]} 10... Nxe4 {[%clk 0:04:03.8]} 11.
Qxe4 {[%clk 0:04:18.8]} 11... Qf6 {[%clk 0:03:47.5]} 12. Bd2 {[%clk 0:04:15.2]}
12... Nd7 {[%clk 0:03:45.7]} 13. Bc3 {[%clk 0:04:12.9]} 13... Qg6 {[%clk
0:03:40.2]} 14. Qh4 {[%clk 0:04:03.9]} 14... Nf6 {[%clk 0:03:33.9]} 15. O-O
{[%clk 0:04:00.4]} 15... e4 {[%clk 0:03:03.5]} 16. Ng5 {[%clk 0:03:47.3]} 16...
h6 {[%clk 0:02:39.9]} 17. Nh3 {[%clk 0:03:43.9]} 17... Nd7 {[%clk 0:02:32.2]}
18. Nf4 {[%clk 0:02:49.5]} 18... Qg5 {[%clk 0:02:25.5]} 19. Qxg5 {[%clk
0:02:39.1]} 19... hxg5 {[%clk 0:02:25.4]} 20. Ne2 {[%clk 0:02:36]} 20... f5
{[%clk 0:02:15.3]} 21. Nd4 {[%clk 0:02:30.7]} 21... Bxd4 {[%clk 0:02:11.1]} 22.
Bxd4 {[%clk 0:02:23.1]} 22... Rf8 {[%clk 0:02:00.9]} 23. b4 {[%clk 0:02:19.5]}
23... a4 {[%clk 0:01:55.9]} 24. c5 {[%clk 0:02:12.6]} 24... Rac8 {[%clk
0:01:29.8]} 25. Rac1 {[%clk 0:01:55.4]} 25... f4 {[%clk 0:01:05.1]} 26. Rfd1
{[%clk 0:01:48.5]} 26... f3 {[%clk 0:01:01.2]} 27. g3 {[%clk 0:01:39.4]} 27...
Kf7 {[%clk 0:00:54.8]} 28. cxd6 {[%clk 0:01:36.8]} 28... cxd6 {[%clk 0:00:51.9]}
29. Kf1 {[%clk 0:01:23.3]} 29... Ne5 {[%clk 0:00:50.5]} 30. Bxe5 {[%clk
0:01:07.9]} 30... dxe5 {[%clk 0:00:48]} 31. Rc5 {[%clk 0:01:05.3]} 31... Rh8
{[%clk 0:00:28.6]} 32. Kg1 {[%clk 0:00:58.1]} 32... b6 {[%clk 0:00:25.4]} 33.
Rc6 {[%clk 0:00:54.1]} 33... Rxc6 {[%clk 0:00:20.8]} 34. dxc6 {[%clk 0:00:53]}
34... Ke6 {[%clk 0:00:18.3]} 35. Rd7 {[%clk 0:00:47.6]} 35... Rc8 {[%clk
0:00:16.1]} 36. Rxg7 {[%clk 0:00:43.7]} 36... Rxc6 {[%clk 0:00:14.8]} 37. Rg6+
{[%clk 0:00:43]} 37... Kd7 {[%clk 0:00:12.4]} 38. Rxc6 {[%clk 0:00:41.8]} 38...
Kxc6 {[%clk 0:00:11.5]} 39. h4 {[%clk 0:00:41.2]} 39... Kd6 {[%clk 0:00:11.4]}
40. hxg5 {[%clk 0:00:39.1]} 40... Ke6 {[%clk 0:00:11.3]} 41. Kh2 {[%clk
0:00:23.1]} 41... Kf5 {[%clk 0:00:11.2]} 42. Kh3 {[%clk 0:00:21.5]} 42... Kxg5
{[%clk 0:00:11]} 43. g4 {[%clk 0:00:20.6]} 43... Kg6 {[%clk 0:00:09.8]} 44. Kh4
{[%clk 0:00:19.4]} 44... Kh6 {[%clk 0:00:09]} 45. g5+ {[%clk 0:00:18.4]} 45...
Kg6 {[%clk 0:00:08.5]} 46. Kg4 {[%clk 0:00:18]} 46... b5 {[%clk 0:00:07.8]} 47.
Kh4 {[%clk 0:00:16.2]} 47... Kg7 {[%clk 0:00:05.5]} 48. Kh5 {[%clk 0:00:15.1]}
48... Kh7 {[%clk 0:00:04.6]} 49. g6+ {[%clk 0:00:14.5]} 49... Kg7 {[%clk
0:00:04]} 50. Kg5 {[%clk 0:00:14.3]} 50... Kg8 {[%clk 0:00:02]} 51. Kf5 {[%clk
0:00:13.9]} 51... Kg7 {[%clk 0:00:01.5]} 52. Kxe5 {[%clk 0:00:12.9]} 52... Kxg6
{[%clk 0:00:01.2]} 53. Kxe4 {[%clk 0:00:12.7]} 53... Kf7 {[%clk 0:00:01.1]} 54.
Kxf3 {[%clk 0:00:12.3]} 54... Ke6 {[%clk 0:00:01]} 55. Ke4 {[%clk 0:00:11.7]}
55... Kf6 {[%clk 0:00:00.3]} 56. f4 {[%clk 0:00:11.5]} 56... Ke6 {[%clk
0:00:00.2]} 57. f5+ {[%clk 0:00:10.5]} 57... Kf6 {[%clk 0:00:00.1]} 58. Kf4
{[%clk 0:00:09.9]} 1-0

[Event "Live Chess"]
[Site "Chess.com"]
[Date "2024.06.01"]
[Round "-"]
[White "Andysav3"]
[Black "grillage"]
[Result "1-0"]
[WhiteElo "1836"]
[BlackElo "1922"]
[TimeControl "300"]
[EndTime "9:29:41 PDT"]
[Termination "Andysav3 won by checkmate"]

1. e4 {[%clk 0:04:57.7]} 1... d5 {[%clk 0:04:58.4]} 2. exd5 {[%clk 0:04:55]}
2... Qxd5 {[%clk 0:04:57.1]} 3. d4 {[%clk 0:04:53.4]} 3... c6 {[%clk 0:04:51]}
4. Nf3 {[%clk 0:04:49.5]} 4... Bg4 {[%clk 0:04:48.5]} 5. Be2 {[%clk 0:04:48.7]}
5... e6 {[%clk 0:04:46.5]} 6. O-O {[%clk 0:04:44.9]} 6... Nf6 {[%clk 0:04:45.1]}
7. c4 {[%clk 0:04:42.3]} 7... Qd7 {[%clk 0:04:43.6]} 8. Ne5 {[%clk 0:04:23.8]}
8... Bxe2 {[%clk 0:04:39.9]} 9. Nxd7 {[%clk 0:04:20.8]} 9... Bxd1 {[%clk
0:04:39]} 10. Nxf6+ {[%clk 0:04:15.9]} 10... gxf6 {[%clk 0:04:35.5]} 11. Rxd1
{[%clk 0:04:14.7]} 11... Nd7 {[%clk 0:04:21.6]} 12. Nc3 {[%clk 0:03:54.5]} 12...
O-O-O {[%clk 0:04:11.3]} 13. Be3 {[%clk 0:03:50.6]} 13... Nb6 {[%clk 0:04:01.8]}
14. b3 {[%clk 0:03:46.8]} 14... Bg7 {[%clk 0:03:59.7]} 15. a4 {[%clk 0:03:35.5]}
15... f5 {[%clk 0:03:42.2]} 16. a5 {[%clk 0:03:29.7]} 16... Nd7 {[%clk
0:03:39.8]} 17. a6 {[%clk 0:02:52.8]} 17... b6 {[%clk 0:03:37.2]} 18. Rac1
{[%clk 0:02:50.4]} 18... Nf6 {[%clk 0:03:29]} 19. b4 {[%clk 0:02:46.7]} 19...
Ng4 {[%clk 0:03:26.5]} 20. Ne2 {[%clk 0:02:30.7]} 20... Nxe3 {[%clk 0:03:24.4]}
21. fxe3 {[%clk 0:02:29.4]} 21... Bh6 {[%clk 0:03:21.5]} 22. Kf2 {[%clk
0:02:25.3]} 22... Rhg8 {[%clk 0:03:19.7]} 23. d5 {[%clk 0:02:15.2]} 23... Kc7
{[%clk 0:03:06.4]} 24. b5 {[%clk 0:02:07.2]} 24... c5 {[%clk 0:02:59.5]} 25.
dxe6 {[%clk 0:01:57]} 25... fxe6 {[%clk 0:02:56.9]} 26. g3 {[%clk 0:01:55.6]}
26... e5 {[%clk 0:02:33.8]} 27. Nc3 {[%clk 0:01:53.2]} 27... f4 {[%clk 0:02:20]}
28. Nd5+ {[%clk 0:01:40.4]} 28... Kb8 {[%clk 0:02:09.1]} 29. gxf4 {[%clk
0:01:39]} 29... exf4 {[%clk 0:02:07]} 30. exf4 {[%clk 0:01:34.7]} 30... Rgf8
{[%clk 0:02:04.6]} 31. Ne7 {[%clk 0:01:23.9]} 31... Rxf4+ {[%clk 0:01:58.2]} 32.
Kg1 {[%clk 0:01:21.1]} 32... Rdf8 {[%clk 0:01:54.6]} 33. Nc6+ {[%clk 0:01:15.7]}
33... Ka8 {[%clk 0:01:53.5]} 34. Rd7 {[%clk 0:01:10.8]} 34... R4f7 {[%clk
0:01:51.6]} 35. Rcd1 {[%clk 0:01:07.1]} 35... Be3+ {[%clk 0:01:48.2]} 36. Kg2
{[%clk 0:01:00]} 36... Bd4 {[%clk 0:01:23.6]} 37. Rxf7 {[%clk 0:00:55.2]} 37...
Rxf7 {[%clk 0:01:18.1]} 38. Nxd4 {[%clk 0:00:53.8]} 38... Rd7 {[%clk 0:01:15.1]}
39. Re1 {[%clk 0:00:51.2]} 39... Kb8 {[%clk 0:00:53.2]} 40. Nc6+ {[%clk
0:00:45.4]} 40... Kc7 {[%clk 0:00:52.5]} 41. Nxa7 {[%clk 0:00:41.4]} 41... Rd4
{[%clk 0:00:52]} 42. Nc6 {[%clk 0:00:37.3]} 42... Rxc4 {[%clk 0:00:50.1]} 43. a7
{[%clk 0:00:36.4]} 43... Ra4 {[%clk 0:00:45.3]} 44. Re7+ {[%clk 0:00:32.5]}
44... Kd6 {[%clk 0:00:40.1]} 45. Re8 {[%clk 0:00:31.2]} 45... Ra2+ {[%clk
0:00:36.8]} 46. Kg3 {[%clk 0:00:30.6]} 46... Ra3+ {[%clk 0:00:34.6]} 47. Kf4
{[%clk 0:00:29.8]} 47... Ra4+ {[%clk 0:00:33.3]} 48. Kg5 {[%clk 0:00:28.7]}
48... c4 {[%clk 0:00:28.6]} 49. a8=Q {[%clk 0:00:27]} 49... Rxa8 {[%clk
0:00:27.7]} 50. Rxa8 {[%clk 0:00:25.9]} 50... Kc5 {[%clk 0:00:27.3]} 51. Ra3
{[%clk 0:00:23.4]} 51... Kxb5 {[%clk 0:00:26.3]} 52. Ne7 {[%clk 0:00:21.3]}
52... Kb4 {[%clk 0:00:25.1]} 53. Ra1 {[%clk 0:00:18.8]} 53... b5 {[%clk
0:00:23.6]} 54. Kh6 {[%clk 0:00:18]} 54... Kb3 {[%clk 0:00:22]} 55. Kxh7 {[%clk
0:00:17.7]} 55... c3 {[%clk 0:00:21.5]} 56. Nd5 {[%clk 0:00:15.3]} 56... Kb2
{[%clk 0:00:20.5]} 57. Nxc3 {[%clk 0:00:13.8]} 57... Kxa1 {[%clk 0:00:16.7]} 58.
Nxb5 {[%clk 0:00:12.7]} 58... Kb2 {[%clk 0:00:16.4]} 59. h4 {[%clk 0:00:12.1]}
59... Kb3 {[%clk 0:00:15]} 60. h5 {[%clk 0:00:11.8]} 60... Kc4 {[%clk
0:00:14.6]} 61. h6 {[%clk 0:00:11.5]} 61... Kd5 {[%clk 0:00:14.2]} 62. Kg7
{[%clk 0:00:10.9]} 62... Ke6 {[%clk 0:00:13.5]} 63. h7 {[%clk 0:00:10.6]} 63...
Kd5 {[%clk 0:00:11.7]} 64. h8=Q {[%clk 0:00:10.1]} 64... Kc5 {[%clk 0:00:11.6]}
65. Qd8 {[%clk 0:00:08.7]} 65... Kxb5 {[%clk 0:00:11.2]} 66. Kf6 {[%clk
0:00:08.2]} 66... Kc4 {[%clk 0:00:10.9]} 67. Ke5 {[%clk 0:00:07.7]} 67... Kc3
{[%clk 0:00:10.8]} 68. Qd4+ {[%clk 0:00:06.2]} 68... Kb3 {[%clk 0:00:09.8]} 69.
Qc5 {[%clk 0:00:04.9]} 69... Kb2 {[%clk 0:00:08.8]} 70. Kd4 {[%clk 0:00:04.6]}
70... Kb3 {[%clk 0:00:08.3]} 71. Kd3 {[%clk 0:00:04.3]} 71... Kb2 {[%clk
0:00:07.3]} 72. Qc2+ {[%clk 0:00:03.3]} 72... Ka3 {[%clk 0:00:06.5]} 73. Qb1
{[%clk 0:00:02.4]} 73... Ka4 {[%clk 0:00:05.2]} 74. Kc4 {[%clk 0:00:01.8]} 74...
Ka5 {[%clk 0:00:04.6]} 75. Qb7 {[%clk 0:00:01.1]} 75... Ka4 {[%clk 0:00:02.8]}
76. Qa7# {[%clk 0:00:00.8]} 1-0